Cogmind - Beta 10.2 @@@ ROGUE MODE // 2020.12.19 @ 19:45:28 Player: Demise Result: Destroyed by S-10 Pest with Light Assault Rifle Performance ------------- Evolutions (1) 500 Regions Visited (6) 1200 Robots Destroyed (115) 575 Value Destroyed (2606) 2606 Prototype IDs (45) 900 Alien Tech Used (0) 0 Bonus (-189) -189 TOTAL SCORE: 5592 Bonus ------- High Alert Combat Kills 89 Follower Combat Kills 149 Aligned with FarCom 300 Friendly Fire -727 Cogmind --------- Core Integrity 0/400 Matter 250/300 Energy 265/265 System Corruption 1% Temperature Cool (4) Movement Treading (250) Ox4 Location -8/Mines Parts ------- > --- POWER (1) -------- Reinforced Ion Engine > --- PROPULSION (2) --- Armored Treads Armored Treads > --- UTILITY (4) ------ Humpback Humpback > --- WEAPON (2) ------- Autogun Autogun > --- INVENTORY (44) --- Makeshift Power Source Makeshift Power Source Reinforced Fission Core Advanced Myomer Leg Advanced Myomer Leg Improved Flight Unit Experimental Heat Sink High-capacity Storage Unit High-capacity Storage Unit High-capacity Storage Unit High-capacity Storage Unit High-capacity Storage Unit Humpback Humpback High-capacity Matter Pod (200) High-capacity Matter Pod (180) Gravity Neutralizing Apparatus Experimental Targeting Computer Advanced Weapon Cycler Advanced Transmission Jammer Core Shielding Improved Light Armor Plating Improved Light Armor Plating EX Chip 1 EX Chip 1 Hacking Suite Hacking Suite EX Chip 2 EX Chip 2 Improved EM Shotgun Advanced Beam Cannon Guided Plasma Cannon YOLO Cannon Autogun 8R-AWN's Boregun Mini Grenade Launcher Datajack Mining Laser Plasma Cutter Longsword +1 Deploy-a-Sentry Peak State ------------ > --- POWER ------------ Reinforced Ion Engine > --- PROPULSION ------- Armored Treads Armored Treads > --- UTILITY ---------- Humpback Humpback > --- WEAPON ----------- Autogun Longsword +1 > --- INVENTORY -------- Makeshift Power Source Makeshift Power Source Reinforced Fission Core Advanced Myomer Leg Advanced Myomer Leg Improved Flight Unit Experimental Heat Sink High-capacity Storage Unit High-capacity Storage Unit High-capacity Storage Unit High-capacity Storage Unit High-capacity Storage Unit Humpback Humpback High-capacity Matter Pod High-capacity Matter Pod Gravity Neutralizing Apparatus Experimental Targeting Computer Advanced Weapon Cycler Advanced Transmission Jammer Core Shielding Improved Light Armor Plating Improved Light Armor Plating EX Chip 1 EX Chip 1 Hacking Suite Hacking Suite EX Chip 2 EX Chip 2 Improved EM Shotgun Advanced Beam Cannon Guided Plasma Cannon YOLO Cannon Autogun Autogun 8R-AWN's Boregun Mini Grenade Launcher Datajack Mining Laser Plasma Cutter Deploy-a-Sentry [Rating: 38] Favorites ----------- Power Reinforced Ion Engine Engine Reinforced Ion Engine Power Core Light Nuclear Core Propulsion Armored Treads Treads Armored Treads Utility High-capacity Storage Unit Device Improved Heat Sink Storage High-capacity Storage Unit Processor Salvage Targeting Computer Hackware Hacking Suite Protection Improved Light Armor Plating Weapon Improved Assault Rifle Energy Gun EM Pulse Gun Energy Cannon Advanced Beam Cannon Ballistic Gun Improved Assault Rifle Launcher Mini Grenade Launcher Special Weapon Mining Laser Slashing Weapon Longsword +1 Special Melee Weapon Datajack Build | -11 -10 -10 -9 -9 -9 -8 ------- Run | Scr Mat Min Mat Min Exi Min Slots Evolved 2 | . . . 2 . . . Power . | . . . . . . . Propulsion . | . . . . . . . Utility 2 | . . . 2 . . . Weapon . | . . . . . . . Parts Attached 108 | 6 11 6 49 7 25 4 Power 11 | 1 3 . 5 . 2 . Engine 9 | 1 2 . 5 . 1 . Core 2 | . 1 . . . 1 . Reactor . | . . . . . . . Propulsion 15 | 2 1 1 9 . 2 . Treads 15 | 2 1 1 9 . 2 . Leg . | . . . . . . . Wheel . | . . . . . . . Hover . | . . . . . . . Flight . | . . . . . . . Utility 26 | 1 4 . 12 1 8 . Device 2 | . . . 2 . . . Storage 10 | 1 3 . 2 1 3 . Processor 2 | . . . . . 2 . Hackware 1 | . . . 1 . . . Protection 11 | . 1 . 7 . 3 . Artifact . | . . . . . . . Weapon 56 | 2 3 5 23 6 13 4 Energy Gun 10 | . 3 1 2 1 2 1 Energy Cannon 2 | . . . 2 . . . Ballistic Gun 32 | 2 . 2 16 4 6 2 Ballistic Cannon . | . . . . . . . Launcher 7 | . . 2 1 1 2 1 Special Weapon 2 | . . . 2 . . . Impact Weapon . | . . . . . . . Slashing Weapon 2 | . . . . . 2 . Piercing Weapon . | . . . . . . . Special Melee Weapon 1 | . . . . . 1 . Unidentified Prototypes 4 | . . . 4 . . . Parts Lost 13 | . 2 3 2 . 6 . Power . | . . . . . . . Propulsion 4 | . 1 1 . . 2 . Utility 2 | . . . . . 2 . Weapon 7 | . 1 2 2 . 2 . Highest Loss Streak 2 | . 1 1 1 . 2 . Average Slot Usage (%) 97 | . 98 99 99 100 94 77 Engine 11 | . 13 14 10 11 11 11 Treads 23 | . 27 28 21 22 22 22 Storage 28 | . 20 28 29 35 27 22 Processor 1 | . . . . . 6 . Protection 7 | . 5 . 13 8 5 . Energy Gun 6 | . 24 14 . 5 1 5 Ballistic Gun 14 | . 3 13 20 16 12 15 Special Melee Weapon 1 | . . . . . 4 . Naked Turns . | . . . . . . . Heaviest Build 176 | 13 73 74 116 142 176 176 Greatest Support 43 | 40 40 40 43 40 40 40 Greatest Overweight (x) 4 | . 3 1 2 3 4 4 Average Overweight (x) 1 | . . 1 1 2 2 4 Largest Inventory Capacity 44 | 6 20 20 28 36 44 44 Average Capacity 24 | 5 15 20 25 29 25 44 Most Carried 44 | 3 19 20 28 30 44 44 Average Carried 22 | 1 13 19 25 28 21 44 Final Capacity 44 | 6 20 20 28 36 44 44 Final Carried 44 | 3 18 20 28 30 44 44 Class Distribution -------------------- 84% | Hauler-Mutant 15% | Mutant Dominant Class ---------------- Mutant | -10/Materials Hauler-Mutant | -10/Mines Hauler-Mutant | -9/Materials Hauler-Mutant | -9/Mines Hauler-Mutant | -9/Exiles Hauler-Mutant | -8/Mines Resources | -11 -10 -10 -9 -9 -9 -8 ----------- Run | Scr Mat Min Mat Min Exi Min Matter Collected 3140 | 284 148 99 1065 240 1222 82 Remotely . | . . . . . . . Salvage Created 4059 | 102 727 230 1862 456 569 113 Parts 294 | 9 34 21 112 33 74 11 Haulers Intercepted 6 | . 1 . 5 . . . Recyclers Shooed 1 | . . . 1 . . . Parts Field Recycled . | . . . . . . . Retrieved Matter . | . . . . . . . Parts Self-Destructed . | . . . . . . . Prevented . | . . . . . . . Kills | -11 -10 -10 -9 -9 -9 -8 ------- Run | Scr Mat Min Mat Min Exi Min Combat Hostiles Destroyed 83 | . 12 10 33 16 4 8 Guns 62 | . 10 5 30 12 1 4 Cannons 1 | . . . 1 . . . AOE 20 | . 2 5 2 4 3 4 Classes Destroyed 15 | 2 5 1 3 . 3 1 Worker 1 | . 1 . . . . . Tunneler 5 | 2 1 . . 2 . . Hauler 6 | . 1 . 5 . . . Recycler 4 | 1 1 . 2 . . . Operator 2 | . 1 . 1 . . . Turret 1 | . . . . . 1 . Watcher 6 | . 2 . 4 . . . Swarmer 29 | . . 6 8 8 . 7 Grunt 35 | . 12 4 13 6 . . Brawler 2 | . . . 1 1 . . Duelist 2 | . . . 1 1 . . Sentry 10 | . . . 10 . . . Hunter 1 | . . . . . . 1 Zionite 8 | . . . . . 8 . Assembled 3 | . . . . . 3 . Best Kill Streak 6 | 3 6 3 4 4 4 4 Combat Bots Only 4 | . 4 3 4 4 3 4 Max Kills in Single Turn 3 | 1 2 2 2 3 3 3 Gunslinging 1 | . . . . 1 . . Exploded 3 | . 2 2 2 3 3 3 Melee . | . . . . . . . Uniques/NPCs Destroyed 4 | . . . . . 4 . 8R-AWN (-9/Exiles) EX-DEC (-9/Exiles) EX-BIN (-9/Exiles) EX-HEX (-9/Exiles) Combat | -11 -10 -10 -9 -9 -9 -8 -------- Run | Scr Mat Min Mat Min Exi Min Damage Taken 4434 | . 542 326 1397 427 1357 385 Core 543 | . 113 27 184 46 109 64 Absorbed by Shields . | . . . . . . . Core Remaining (%) 72 | 100 . 44 . . . . Volleys Fired 393 | 4 48 36 141 33 118 13 Largest 2 | 2 2 2 2 2 2 2 Hottest 105 | 40 80 105 100 68 46 68 Shots Fired 706 | 8 95 52 261 61 205 24 Gun 679 | 8 95 49 254 59 192 22 Cannon 3 | . . . 3 . . . Launcher 21 | . . 3 1 2 13 2 Special 3 | . . . 3 . . . Kinetic 517 | 8 16 10 239 50 176 18 Thermal 55 | . . 34 21 . . . Explosive 21 | . . 3 1 2 13 2 Electromagnetic 113 | . 79 5 . 9 16 4 Robot Hit Streak 33 | 6 11 6 32 33 21 5 Robot Miss Streak 7 | 1 3 2 3 2 7 3 Penetration Max . | . . . . . . . Secondary Targets 6 | . . . 2 3 . 1 Max Gunslinging Chain 1 | . . . 1 1 . 1 Shots Hit Robots 512 | 7 63 34 190 47 156 15 Core Hits 201 | 4 33 15 76 23 40 10 Critical Hits 3 | . 1 . 2 . . . Critical Kills 1 | . . . 1 . . . Critical Parts Destroyed 2 | . 1 . 1 . . . Melee Attacks 7 | . . . . . 7 . Impact . | . . . . . . . Slashing 3 | . . . . . 3 . Piercing . | . . . . . . . Sneak Attacks 6 | . . . . . 6 . Combat Hostiles . | . . . . . . . Follow-up Attacks . | . . . . . . . Damage Inflicted 9395 | 82 1387 727 2442 1147 3173 437 Guns 6841 | 82 771 451 2282 733 2340 182 Cannons 62 | . . . 62 . . . Explosions 2165 | . 611 276 98 414 511 255 Melee 322 | . . . . . 322 . Ramming 5 | . 5 . . . . . Kinetic 5153 | 82 143 27 2125 635 2017 124 Thermal 1238 | . 360 466 219 108 33 52 Explosive 1541 | . 251 205 98 306 478 203 Electromagnetic 1136 | . 628 29 . 98 323 58 Impact . | . . . . . . . Slashing 322 | . . . . . 322 . Piercing . | . . . . . . . Highest Corruption 1 | . . . 1 1 1 1 Average Corruption 1 | . . . 1 1 1 1 Corruption Purged . | . . . . . . . Effects 35 | . . . 6 11 14 4 Message Errors 15 | . . . 1 7 5 2 Energy Discharges 9 | . . . 4 2 3 . Data Loss (minor) 6 | . . . . 1 3 2 Targeting Errors 5 | . . . 1 1 3 . Overload Shots . | . . . . . . . Overflow Damage 319 | . 86 53 . 41 139 . Projectiles . | . . . . . . . Explosions 191 | . 86 53 . 41 11 . Melee 128 | . . . . . 128 . Knockbacks . | . . . . . . . Impact . | . . . . . . . Kinetic . | . . . . . . . Secondary . | . . . . . . . Self-Inflicted Damage 207 | . 68 92 . 47 . . Shots 7 | . 3 3 . 1 . . Rammed 1 | . 1 . . . . . Targets Rammed 1 | . 1 . . . . . Kicked . | . . . . . . . Crushed . | . . . . . . . Highest Temperature 320 | . 193 320 96 54 54 82 Average Temperature 42 | . 60 97 21 14 14 24 Received Heat Transfer 948 | . 267 66 486 129 . . Siege Activations . | . . . . . . . Robots Corrupted 3 | . . . . . 3 . Combat Hostiles . | . . . . . . . Parts Fried 4 | . . . . . 4 . Impact Corruptions . | . . . . . . . Robots Melted . | . . . . . . . Combat Hostiles . | . . . . . . . Parts Melted . | . . . . . . . Heat Transferred 2319 | . 600 988 481 150 50 50 Parts Sabotaged . | . . . . . . . Parts Stolen . | . . . . . . . Parts Stripped . | . . . . . . . Power Chain Reactions 10 | . 5 1 . 2 1 1 Missiles Intercepted . | . . . . . . . Alert | -11 -10 -10 -9 -9 -9 -8 ------- Run | Scr Mat Min Mat Min Exi Min Peak Influence 574 | 15 194 180 485 574 . 238 Initial 189 | . 9 75 . 189 . . Average 175 | 6 59 62 205 341 . 144 Maximum Alert Level 2 | . . . 2 2 . 1 Low Security (%) 63 | 100 100 100 55 2 . 92 Level 1 30 | . . . 36 79 . 7 Level 2 6 | . . . 7 17 . . Level 3 . | . . . . . . . Level 4 . | . . . . . . . Level 5 . | . . . . . . . High Security . | . . . . . . . Max Security . | . . . . . . . Squads Dispatched 9 | . 4 . 5 . . . Investigation 4 | . 3 . 1 . . . Extermination . | . . . . . . . Reinforcement 4 | . 1 . 3 . . . Assault 1 | . . . 1 . . . Garrison . | . . . . . . . Intercept . | . . . . . . . Construction Impeded . | . . . . . . . Haulers Reinforced . | . . . . . . . Stealth | -11 -10 -10 -9 -9 -9 -8 --------- Run | Scr Mat Min Mat Min Exi Min Distress Signals 4 | . 2 . 2 . . . Communications Jammed . | . . . . . . . Distress Signals . | . . . . . . . Times Spotted 147 | . 20 9 56 20 33 9 Peak Tracking Total 9 | . 5 3 5 4 9 4 Tactical Retreats 13 | . 1 . 5 1 6 . Traps | -11 -10 -10 -9 -9 -9 -8 ------- Run | Scr Mat Min Mat Min Exi Min Traps Triggered 2 | . . . 2 . . . Indirectly . | . . . . . . . Trap Hack Attempts . | . . . . . . . Triggered . | . . . . . . . Disarmed . | . . . . . . . Reprogrammed . | . . . . . . . Reused . | . . . . . . . Traps Extracted . | . . . . . . . Installed . | . . . . . . . Triggered 1 | . 1 . . . . . Exploded 3 | . . . . . 3 . Machines | -11 -10 -10 -9 -9 -9 -8 ---------- Run | Scr Mat Min Mat Min Exi Min Machines Disabled 18 | . 4 . 2 1 10 1 Max in Single Turn 2 | . 2 . 1 . 2 1 Machines Sabotaged . | . . . . . . . Garrisons Compromised . | . . . . . . . Overloaded Fab Kills . | . . . . . . . Fab Network Shutdowns . | . . . . . . . Hacking | -11 -10 -10 -9 -9 -9 -8 --------- Run | Scr Mat Min Mat Min Exi Min Machines Accessed 23 | . 8 . 13 . 2 . Terminals 14 | . 6 . 8 . . . Fabricators . | . . . . . . . Repair Stations 2 | . . . 2 . . . Recycling Units 4 | . 2 . 2 . . . Scanalyzers 1 | . . . 1 . . . Garrison Access . | . . . . . . . Total Hacks 78 | . 23 . 53 . 2 . Successful 52 | . 13 . 37 . 2 . Failed 25 | . 9 . 16 . . . Catastrophic 1 | . 1 . . . . . Database Lockouts 1 | . 1 . . . . . Manual 41 | . 17 . 23 . 1 . Terminals 48 | . 17 . 31 . . . Fabricators . | . . . . . . . Repair Stations 14 | . . . 14 . . . Recycling Units 11 | . 6 . 5 . . . Scanalyzers 3 | . . . 3 . . . Garrison Access . | . . . . . . . Terminal Hacks 17 | . 5 . 10 . 2 . Record 1 | . . . . . 1 . Robot Analysis 5 | . 3 . 2 . . . Prototype ID Bank 2 | . 1 . 1 . . . Branch Access Points 1 | . . . 1 . . . Terminal Index 2 | . 1 . 1 . . . Unreport Threat 1 | . . . 1 . . . Locate Traps 1 | . . . 1 . . . Zone Layout 3 | . . . 3 . . . EX-Prototype ID Bank 1 | . . . . . 1 . Fabricator Hacks . | . . . . . . . Repair Station Hacks 13 | . . . 13 . . . Scan Component 7 | . . . 7 . . . Repair 6 | . . . 6 . . . Recycling Unit Hacks 4 | . 2 . 2 . . . Report Inventory 4 | . 2 . 2 . . . Scanalyzer 3 | . . . 3 . . . Insert Component 2 | . . . 2 . . . Analyze 1 | . . . 1 . . . Garrison Access Hacks . | . . . . . . . Unauthorized Hacks 15 | . 6 . 9 . . . Terminals 11 | . 4 . 7 . . . Track 2 | . . . 2 . . . Assimilate 3 | . 2 . 1 . . . Botnet 4 | . 1 . 3 . . . Operators 2 | . 1 . 1 . . . Fabricators . | . . . . . . . Repair Stations . | . . . . . . . Recycling Units 4 | . 2 . 2 . . . Reject 1 | . 1 . . . . . Mask 2 | . . . 2 . . . Tunnel 1 | . 1 . . . . . Scanalyzers . | . . . . . . . Garrison Access . | . . . . . . . Data Cores Recovered . | . . . . . . . Used . | . . . . . . . Hacking Detections 16 | . 7 . 9 . . . Full Trace Events 2 | . 1 . 1 . . . Feedback Events . | . . . . . . . Feedback Blocked . | . . . . . . . Robot Schematics Acquired . | . . . . . . . Robots Built . | . . . . . . . Matter . | . . . . . . . Time . | . . . . . . . Total Robot Build Rating . | . . . . . . . Part Schematics Acquired 1 | . . . 1 . . . Parts Built . | . . . . . . . Matter . | . . . . . . . Time . | . . . . . . . Total Part Build Rating . | . . . . . . . Parts Repaired 6 | . . . 6 . . . Time 248 | . . . 248 . . . Parts Recycled . | . . . . . . . Recycled Matter . | . . . . . . . Retrieved Matter . | . . . . . . . Retrieved Components . | . . . . . . . Parts Scanalyzed 1 | . . . 1 . . . Part Schematics Acquired 1 | . . . 1 . . . Parts Damaged . | . . . . . . . Bothacking | -11 -10 -10 -9 -9 -9 -8 ------------ Run | Scr Mat Min Mat Min Exi Min Used RIF Installer . | . . . . . . . Robots Hacked 4 | . . . . . 4 . Non-combat 3 | . . . . . 3 . Combat 1 | . . . . . 1 . Robot Hacks Applied 4 | . . . . . 4 . parse_system 4 | . . . . . 4 . Relay Couplers Released . | . . . . . . . Robots Rewired . | . . . . . . . Allies Hacked . | . . . . . . . Hacks Repelled . | . . . . . . . Allies | -11 -10 -10 -9 -9 -9 -8 -------- Run | Scr Mat Min Mat Min Exi Min Total Allies 7 | . 2 3 . 2 . . Largest Group 4 | . 2 4 4 2 2 . Highest-Rated Group 52 | . 20 50 50 52 52 . Highest-Rated Ally 31 | . 10 16 16 31 31 . Total Orders 2 | . . 2 . . . . STAY 1 | . . 1 . . . . FOLLOW 1 | . . 1 . . . . Ally Attacks 39 | . . . 30 9 . . Total Damage 359 | . . . 235 124 . . Kills 7 | . . . 4 3 . . Allies Corrupted . | . . . . . . . Allies Melted . | . . . . . . . Intel | -11 -10 -10 -9 -9 -9 -8 ------- Run | Scr Mat Min Mat Min Exi Min Robot Analysis Total 5 | . 3 . 2 . . . Derelict Logs Recovered 2 | . . . . 2 . . Drone Launches . | . . . . . . . Drone Recoveries . | . . . . . . . Exploration | -11 -10 -10 -9 -9 -9 -8 ------------- Run | Scr Mat Min Mat Min Exi Min Turns Passed 10748 | 87 1391 1487 3375 1457 2830 121 Spaces Moved 4516 | 42 651 758 1305 628 1099 33 Core 3 | 3 . . . . . . Treads 4513 | 39 651 758 1305 628 1099 33 Legs . | . . . . . . . Wheels . | . . . . . . . Hover . | . . . . . . . Flight . | . . . . . . . Fastest Speed 50 | 50 160 180 180 210 190 250 Average Speed 198 | 152 179 180 198 214 215 250 Slowest Speed 250 | 160 220 180 210 230 250 250 Overloaded Moves . | . . . . . . . Propulsion Burnouts . | . . . . . . . Robots Hopped . | . . . . . . . Cave-ins Triggered . | . . . . . . . Exploration Rate (%) 70 | 6 96 99 96 98 90 11 Regions Visited 6 Branch Regions 4 Pre-discovered Areas 2 | . 1 . . . 1 . Known Exits Taken 1 | . . . 1 . . . Unknown Exits Taken 5 | 1 1 1 . 1 1 . Scrap Searched 2 | . . 1 . 1 . . Spaces Dug 2 | . . . 2 . . . Terrain Destroyed 129 | . 28 23 12 36 9 21 Melee . | . . . . . . . Projectile 3 | . . . 3 . . . AOE 126 | . 28 23 9 36 9 21 Terrain Rammed . | . . . . . . . Walls Destroyed . | . . . . . . . Machines Disabled . | . . . . . . . Actions | -11 -10 -10 -9 -9 -9 -8 --------- Run | Scr Mat Min Mat Min Exi Min Total 5631 | 54 776 829 1853 676 1393 50 Wait 402 | . 42 25 282 7 46 . Move 4510 | 41 650 757 1304 627 1098 33 Hop . | . . . . . . . Pick Up 110 | 3 17 5 32 2 51 . Fast Attach 28 | 6 4 . 11 . 7 . Attach 22 | . 3 3 8 . 8 . Detach 15 | . 3 . 3 . 9 . Swap 58 | . 4 3 30 7 10 4 Drop 85 | . 4 . 42 . 39 . Fire 393 | 4 48 36 141 33 118 13 Melee 7 | . . . . . 7 . Ram . | . . . . . . . Kick . | . . . . . . . Crush 1 | . 1 . . . . . Escape Stasis . | . . . . . . . Rewire . | . . . . . . . Trap . | . . . . . . . Miscellaneous . | . . . . . . . Route ------- -11/Scrapyard -10/Materials (discovered 5 exits: *Mat x3 / [*Min x2]) -10/Mines (discovered 2 exits: *Mat x2) -9/Materials (discovered 4 exits: [*Mat x3] / *Min) -9/Mines (discovered 4 exits: [*Mat x2] / *Exi / [*Zio]) -9/Exiles -8/Mines History --------- Turn | Location | Event 9 | -11/Scrapyard | Discovered new exit (range 15) 88 | -11/Scrapyard | Entered Materials 243 | -10/Materials | Discovered new exit (range 16) 447 | -10/Materials | Build established: Mutant 554 | -10/Materials | Discovered new exit (range 3) 741 | -10/Materials | Discovered new exit (range 12) 792 | -10/Materials | Discovered new exit (range 11) 1062 | -10/Materials | Discovered new exit (range 14) 1142 | -10/Materials | Build established: Hauler-Mutant 1181 | -10/Materials | Central database locked down 1479 | -10/Materials | Entered Mines 1479 | -10/Mines | Accompanied by 2 allies 1707 | -10/Mines | YI-UF0 nonchalantly dropped a Grenade Launcher on the ground 2092 | -10/Mines | Core integrity fell below 50% 2296 | -10/Mines | Discovered new exit (range 6) 2766 | -10/Mines | Discovered new exit (range 10) 2850 | -10/Mines | Assisted by bots powering up and referring to "LRC-V3" 2966 | -10/Mines | Entered Materials 2966 | -9/Materials | Accompanied by 4 allies 2966 | -9/Materials | Evolved 2 slots: Utility x2 3151 | -9/Materials | Repaired Lgt. Treads 3604 | -9/Materials | Discovered new exit (range 15) 4067 | -9/Materials | Discovered new exit (range 15) 4465 | -9/Materials | Identified exit to Mines 4713 | -9/Materials | Discovered new exit (range 11) 5463 | -9/Materials | Discovered new exit (range 11) 5859 | -9/Materials | Repaired Imp. Assault Rifle 5912 | -9/Materials | Repaired Imp. Assault Rifle 5951 | -9/Materials | Repaired Arm. Treads 5990 | -9/Materials | Repaired Imp. Light Armor Plating 6036 | -9/Materials | Repaired Broken Rnf. Ion Engine 6166 | -9/Materials | First assault squad dispatched 6341 | -9/Materials | Entered Mines 6475 | -9/Mines | Core integrity fell below 50% 6547 | -9/Mines | Learned Materials stockpile data 6741 | -9/Mines | A Derelict revealed a hidden shortcut to a safe place 6962 | -9/Mines | Deemed a non-threat by the Exiles lab entrance 6962 | -9/Mines | Discovered new exit (range 5) 7088 | -9/Mines | Discovered new exit (range 7) 7177 | -9/Mines | Discovered new exit (range 11) 7247 | -9/Mines | Learned Materials security intel 7377 | -9/Mines | A weapon hastily lodged in a ceiling crevice suddenly fell to the ground 7798 | -9/Mines | Entered Exiles 7798 | -9/Exiles | Accompanied by 2 allies 7828 | -9/Exiles | Led the pair of lost Derelicts to a safe place 7859 | -9/Exiles | Met 8R-AWN 7906 | -9/Exiles | Met EX-HEX 8025 | -9/Exiles | Met EX-DEC 8092 | -9/Exiles | Learned location of Zion (-7) 8254 | -9/Exiles | Discovered new exit (range 14) 8439 | -9/Exiles | Met EX-BIN 8473 | -9/Exiles | Aligned with FarCom system 8475 | -9/Exiles | Given EX-Vault access code 8531 | -9/Exiles | Opened EX-Vault 8542 | -9/Exiles | Found YOLO Cannon 8548 | -9/Exiles | Found Longsword +1 8558 | -9/Exiles | Found Gui. Plasma Cannon 8605 | -9/Exiles | Warned to stay clear of 0b10 Research branches 9088 | -9/Exiles | Attacked by the Exiles 9317 | -9/Exiles | Core integrity fell below 20% 9320 | -9/Exiles | Destroyed 8R-AWN 9358 | -9/Exiles | Found 8R-AWN's Boregun 9370 | -9/Exiles | Found Exp. Targeting Computer 9434 | -9/Exiles | Build established: Mutant 9793 | -9/Exiles | Destroyed EX-DEC 9923 | -9/Exiles | Destroyed EX-BIN 9996 | -9/Exiles | Destroyed EX-HEX 10201 | -9/Exiles | Found Deploy-a-Sentry 10321 | -9/Exiles | Build established: Hauler-Mutant 10628 | -9/Exiles | Stole four prototypes: Longsword +1, Gui. Plasma Cannon, YOLO Cannon, Deploy-a-Sentry 10628 | -9/Exiles | Entered Mines 10749 | -8/Mines | Destroyed by S-10 Pest with Light Assault Rifle Last Messages --------------- 10687_ Penetrated by Slug. 10687_ Pulverizer disabled. 10687_ U-05 Engineer lays Concrete. 10693_ Chain reaction triggered in Lgt. Nuclear Core. 10693_ H-55 Commando destroyed. 10701_ K-01 Serf collects debris. 10705_ System corrupted: Component data lost. 10707_ R-06 Scavenger collects Flight Unit. 10708_ K-01 Serf collects debris. 10711_ Acquired 50 matter. 10712_ R-06 Scavenger collects Assault Rifle. 10715_ K-01 Serf collects debris. 10717_ R-06 Scavenger collects Carbon-fiber Leg. 10722_ R-06 Scavenger collects Flight Unit. 10737_ S-10 Pest destroyed. 10742_ 6S7F|FZKJTBKQCXBWHSPH=S< 10742_ The unstable cave ceiling collapses. 10743_ Acquired 11 matter. 10745_ S-10 Pest destroyed. 10745_ Switching to secondary target: S-10 Pest. Map ----- +----------------------------------------------------+ | ?????????????????????????????????????????? | | ?????????????????????????????????????????? | | ?????????????????????????????????????????? | | ?????????????????????????????????????????? | | ?????????????????????????????????????????? | | ?????????????????????????????????????????? | | ?????????????????????????????????????????? | | ?????????????????????????????????????????? | | ?????????????????????????????????????????? | | ?????????????????????????????????????????? | | ?????????????????????????????????????????? | | ?????????????????????????????????????????? | | ?????????????????????????????????????????? | | ?????????????????????????????????????????? | | ?????????????????????????????????????????? | | ?????????????????????????????????????????? | | ??????????????????????????????##?????????? | | ??????????????????????????????? ?????????? | | ??????????????????????????????? ?????????? | | ??????????????????????????????? ?????????? | | ?????????????????????##???????? ?????????? | | ?????????????????????? ??????? ?????????? | | ??????????????????????? ??????? ###??????? | | ???????????????????????# ????### #??????? | | ???????????????????????#s##### #??????? | | ???????????????????????#=@%*%[ ##?????? | | ???????????????????????####### #?????? | | ?????????????????########### "#?????? | | ?????????????????# "#?????? | | ?????????????????# "#?????? | | ?????????????????# ##?????? | | ?????????????????# " "" "" #??????? | | ?????????????????# """" """" #??????? | | ?????????????????# """" """" #??????? | | ?????????????????# #??????? | | ?????????????????# """" """" """" #??????? | | ?????????????????# """" """" """" #??????? | | ???????????????????"""" """" """" #??????? | | ????????????????????? #??????? | | ?????????????????????"" """" """" #??????? | | ??????????????????????" """" """" #??????? | | ??????????????????????" "??" "??? #??????? | | ??????????????????????? ??? ???? ???????? | | ???????????????????????#????#????????????? | | ?????????????????????????????????????????? | | ?????????????????????????????????????????? | | ?????????????????????????????????????????? | | | | | | | +----------------------------------------------------+ Best States ------------- Heat Dissipation 42 Energy Generation 14 Energy Capacity 280 Matter Stores 300 Matter Capacity 300 Sight Range 16 Terrain Scan Density 10 Armor Coverage 600 Core Shielding 20 Evasion (%) 40 Armor Integrity Analysis 33 Recoil Reduction 2 Salvage Targeting 1 Offensive Hacking 10 Item Schematics ----------------- Hacking Suite | -9/Materials | Scanalyzed Robot Schematics ------------------ None Fabricated ------------ Nothing Alien Tech Used ----------------- None Achievements -------------- None Challenges ------------ None Game ------ Seed ChargeThiefAirjet Manual? 0 Play Time 00:59:34 Cumulative 139.7 hours Start 2020.12.19 @ 18:44:09 End 2020.12.19 @ 19:45:28 Sessions 1 Manual Loads 0 Difficulty Rogue Special Mode None Game No. 126 Rogue 126 Adventurer 0 Explorer 0 Win Type - Total 0 Types 0/0/0/0/0/0/0/0/0 Lore% 53 Gallery% 65 Achievement% 54 Wizard Run 0 Options --------- ASCII 0 Keyboard 1 Movement Numpad Keybinds 0 Fullscreen 1 Font 12/Terminus Map View 83x54 Tactical HUD 1 Map Filters NONE Filters NONE Steam 1 RUN: 8dc87cba-f980-4d41-9485-2525ec9a93d1